[Event "Titled Tuesday Blitz November 01 Early 2022"]
[White "Unat, Can Haktan"]
[Black "Johnson, Ben"]
[WhiteFideId "6398073"]
[BlackFideId "2010917"]
[WhiteElo "2146"]
[BlackElo "2130"]
[Result "1-0"]
[Round "07"]
[TimeControl "180+1"]
[Date "2022.11.02"]
[WhiteClock "0:01:13"]
[BlackClock "0:00:03"]

1. d4 {[%clk 0:03:00]}  Nf6 {[%clk 0:02:59]} 2. c4 {[%clk 0:03:01]}  e6 {[%clk 0:03:00]} 3. Nc3 {[%clk 0:03:01]}  Bb4 {[%clk 0:03:00]} 4. Bg5 {[%clk 0:03:01]}  c5 {[%clk 0:02:59]} 5. Nf3 {[%clk 0:03:00]}  h6 {[%clk 0:02:56]} 6. Bxf6 {[%clk 0:02:53]}  Qxf6 {[%clk 0:02:53]} 7. a3 {[%clk 0:02:53]}  Bxc3+ {[%clk 0:02:51]} 8. bxc3 {[%clk 0:02:54]}  d5 {[%clk 0:02:39]} 9. e3 {[%clk 0:02:51]}  O-O {[%clk 0:02:31]} 10. Be2 {[%clk 0:02:40]}  dxc4 {[%clk 0:02:17]} 11. Bxc4 {[%clk 0:02:41]}  Nc6 {[%clk 0:02:12]} 12. O-O {[%clk 0:02:40]}  b6 {[%clk 0:02:11]} 13. Qe2 {[%clk 0:02:33]}  Bb7 {[%clk 0:01:57]} 14. Rad1 {[%clk 0:02:32]}  Na5 {[%clk 0:01:43]} 15. Bd3 {[%clk 0:02:30]}  Rac8 {[%clk 0:01:27]} 16. Ne5 {[%clk 0:02:24]}  Rfd8 {[%clk 0:01:19]} 17. f4 {[%clk 0:02:20]}  Bd5 {[%clk 0:00:55]} 18. f5 {[%clk 0:02:16]}  Rc7 {[%clk 0:00:40]} 19. Qg4 {[%clk 0:02:04]}  Nc6 {[%clk 0:00:34]} 20. c4 {[%clk 0:01:53]}  Nxe5 {[%clk 0:00:29]} 21. dxe5 {[%clk 0:01:54]}  Qxe5 {[%clk 0:00:29]} 22. cxd5 {[%clk 0:01:52]}  Qxe3+ {[%clk 0:00:29]} 23. Kh1 {[%clk 0:01:52]}  Rxd5 {[%clk 0:00:24]} 24. Bc4 {[%clk 0:01:37]}  Rxd1 {[%clk 0:00:20]} 25. Qxd1 {[%clk 0:01:38]}  Qd4 {[%clk 0:00:14]} 26. Qe2 {[%clk 0:01:25]}  e5 {[%clk 0:00:12]} 27. f6 {[%clk 0:01:24]}  g6 {[%clk 0:00:11]} 28. Rd1 {[%clk 0:01:25]}  Qf4 {[%clk 0:00:08]} 29. g3 {[%clk 0:01:23]}  Qxf6 {[%clk 0:00:08]} 30. Rf1 {[%clk 0:01:23]}  Qc6+ {[%clk 0:00:06]} 31. Kg1 {[%clk 0:01:22]}  Kg7 {[%clk 0:00:06]} 32. Qxe5+ {[%clk 0:01:23]}  Kg8 {[%clk 0:00:03]} 33. Bd5 {[%clk 0:01:20]}  Qd7 {[%clk 0:00:03]} 34. Rf6 {[%clk 0:01:12]}  Qd8 {[%clk 0:00:02]} 35. Rxg6+ {[%clk 0:01:12]}  Kh7 {[%clk 0:00:03]} 36. Qg7# {[%clk 0:01:13]} 1-0


[Site "https://www.chess.com"]

[Event "Titled Tuesday Blitz November 01 Early 2022"]
[White "Vargas, Mauricio"]
[Black "Mesa Cruz, Juan Carlos"]
[WhiteFideId "4404572"]
[BlackFideId "6423400"]
[WhiteElo "2025"]
[BlackElo "2059"]
[Result "0-1"]
[Round "07"]
[TimeControl "180+1"]
[Date "2022.11.02"]
[WhiteClock "0:00:03"]
[BlackClock "0:00:41"]

1. e4 {[%clk 0:02:11]}  c5 {[%clk 0:02:57]} 2. Nc3 {[%clk 0:02:11]}  Nc6 {[%clk 0:02:46]} 3. f4 {[%clk 0:02:12]}  e6 {[%clk 0:02:31]} 4. Nf3 {[%clk 0:02:12]}  d5 {[%clk 0:02:23]} 5. Bb5 {[%clk 0:02:12]}  d4 {[%clk 0:02:23]} 6. Ne2 {[%clk 0:02:10]}  Qb6 {[%clk 0:02:20]} 7. Bxc6+ {[%clk 0:02:09]}  Qxc6 {[%clk 0:02:21]} 8. d3 {[%clk 0:02:09]}  Bd6 {[%clk 0:02:20]} 9. O-O {[%clk 0:02:10]}  Ne7 {[%clk 0:02:19]} 10. Qe1 {[%clk 0:02:07]}  b5 {[%clk 0:02:19]} 11. Qf2 {[%clk 0:02:00]}  Bb7 {[%clk 0:02:18]} 12. Ne5 {[%clk 0:01:58]}  Qc7 {[%clk 0:02:14]} 13. Ng3 {[%clk 0:01:56]}  c4 {[%clk 0:02:12]} 14. Kh1 {[%clk 0:01:51]}  Rc8 {[%clk 0:02:03]} 15. Nh5 {[%clk 0:01:50]}  O-O {[%clk 0:02:00]} 16. Qg3 {[%clk 0:01:39]}  Ng6 {[%clk 0:01:58]} 17. Nxg6 {[%clk 0:01:34]}  fxg6 {[%clk 0:01:54]} 18. e5 {[%clk 0:01:23]}  Bc5 {[%clk 0:01:51]} 19. Qg4 {[%clk 0:01:18]}  gxh5 {[%clk 0:01:48]} 20. Qxe6+ {[%clk 0:01:16]}  Kh8 {[%clk 0:01:43]} 21. Qh3 {[%clk 0:01:02]}  Qxe5 {[%clk 0:01:39]} 22. Bd2 {[%clk 0:00:56]}  Qe2 {[%clk 0:01:37]} 23. Rad1 {[%clk 0:00:48]}  Rce8 {[%clk 0:01:25]} 24. f5 {[%clk 0:00:44]}  Qg4 {[%clk 0:01:12]} 25. Qxg4 {[%clk 0:00:33]}  hxg4 {[%clk 0:01:10]} 26. Rf4 {[%clk 0:00:27]}  Re2 {[%clk 0:01:05]} 27. Rxg4 {[%clk 0:00:25]}  Rxf5 {[%clk 0:01:04]} 28. h3 {[%clk 0:00:24]}  Bd6 {[%clk 0:00:47]} 29. dxc4 {[%clk 0:00:20]}  Rxd2 {[%clk 0:00:46]} 30. Re1 {[%clk 0:00:16]}  Re2 {[%clk 0:00:44]} 31. Rg1 {[%clk 0:00:04]}  Re3 {[%clk 0:00:41]} 32. Rxd4 {[%clk 0:00:03]}  Rxh3# {[%clk 0:00:41]} 0-1


[Site "https://www.chess.com"]

[Event "Titled Tuesday Blitz November 01 Early 2022"]
[White "Vovk, Orest"]
[Black "Ozdemir, Serhan Berat"]
[WhiteFideId "14113490"]
[BlackFideId "6374611"]
[WhiteElo "2215"]
[BlackElo "2016"]
[Result "0-1"]
[Round "07"]
[TimeControl "180+1"]
[Date "2022.11.02"]
[WhiteClock "0:01:12"]
[BlackClock "0:00:32"]

1. h4 {[%clk 0:02:49]}  h5 {[%clk 0:02:31]} 2. Nf3 {[%clk 0:02:47]}  Nf6 {[%clk 0:02:31]} 3. Ng5 {[%clk 0:02:47]}  d5 {[%clk 0:02:29]} 4. e4 {[%clk 0:02:47]}  dxe4 {[%clk 0:02:27]} 5. Qe2 {[%clk 0:02:47]}  Nc6 {[%clk 0:02:15]} 6. Nxe4 {[%clk 0:02:43]}  Nxe4 {[%clk 0:02:12]} 7. Qxe4 {[%clk 0:02:42]}  Qd4 {[%clk 0:02:08]} 8. Qxd4 {[%clk 0:02:42]}  Nxd4 {[%clk 0:02:09]} 9. Bd3 {[%clk 0:02:42]}  Bf5 {[%clk 0:02:08]} 10. Bxf5 {[%clk 0:02:41]}  Nxf5 {[%clk 0:02:08]} 11. d3 {[%clk 0:02:37]}  e6 {[%clk 0:02:08]} 12. Be3 {[%clk 0:02:37]}  Be7 {[%clk 0:02:06]} 13. g3 {[%clk 0:02:32]}  Nxe3 {[%clk 0:01:58]} 14. fxe3 {[%clk 0:02:32]}  Bd6 {[%clk 0:01:59]} 15. O-O {[%clk 0:02:28]}  Bxg3 {[%clk 0:01:57]} 16. Nc3 {[%clk 0:02:27]}  Bxh4 {[%clk 0:01:57]} 17. Nb5 {[%clk 0:02:25]}  Bd8 {[%clk 0:01:53]} 18. Rf4 {[%clk 0:02:20]}  a6 {[%clk 0:01:50]} 19. Nc3 {[%clk 0:02:17]}  g5 {[%clk 0:01:42]} 20. Rb4 {[%clk 0:02:15]}  b5 {[%clk 0:01:41]} 21. a4 {[%clk 0:02:05]}  c5 {[%clk 0:01:36]} 22. Re4 {[%clk 0:01:55]}  b4 {[%clk 0:01:33]} 23. Ne2 {[%clk 0:01:52]}  f5 {[%clk 0:01:29]} 24. Rxe6+ {[%clk 0:01:51]}  Kd7 {[%clk 0:01:23]} 25. Re5 {[%clk 0:01:44]}  Be7 {[%clk 0:01:21]} 26. Rxf5 {[%clk 0:01:43]}  Raf8 {[%clk 0:01:20]} 27. Raf1 {[%clk 0:01:42]}  Rxf5 {[%clk 0:01:19]} 28. Rxf5 {[%clk 0:01:43]}  Rf8 {[%clk 0:01:19]} 29. Rd5+ {[%clk 0:01:41]}  Ke6 {[%clk 0:01:19]} 30. e4 {[%clk 0:01:42]}  h4 {[%clk 0:01:14]} 31. d4 {[%clk 0:01:35]}  Rd8 {[%clk 0:01:03]} 32. Rxd8 {[%clk 0:01:28]}  Bxd8 {[%clk 0:01:03]} 33. c3 {[%clk 0:01:29]}  Bb6 {[%clk 0:00:53]} 34. Kg2 {[%clk 0:01:24]}  cxd4 {[%clk 0:00:42]} 35. cxd4 {[%clk 0:01:23]}  g4 {[%clk 0:00:42]} 36. Nf4+ {[%clk 0:01:21]}  Kd6 {[%clk 0:00:40]} 37. e5+ {[%clk 0:01:18]}  Kd7 {[%clk 0:00:40]} 38. d5 {[%clk 0:01:18]}  Bd4 {[%clk 0:00:36]} 39. Ng6 {[%clk 0:01:16]}  Bxb2 {[%clk 0:00:32]} 40. Nxh4 {[%clk 0:01:16]}  Bxe5 {[%clk 0:00:31]} 41. Ng6 {[%clk 0:01:12]}  Kd6 {[%clk 0:00:32]} 0-1


[Site "https://www.chess.com"]

[Event "Titled Tuesday Blitz November 01 Early 2022"]
[White "Vrbljanac, Aleksandar"]
[Black "Zemlyanskii, Ivan"]
[WhiteFideId "932817"]
[BlackFideId "24249971"]
[WhiteElo "2309"]
[BlackElo "2107"]
[Result "0-1"]
[Round "07"]
[TimeControl "180+1"]
[Date "2022.11.01"]
[WhiteClock "0:00:09"]
[BlackClock "0:01:02"]

1. e4 {[%clk 0:02:58]}  c5 {[%clk 0:03:00]} 2. Nf3 {[%clk 0:02:35]}  e6 {[%clk 0:03:00]} 3. g3 {[%clk 0:02:35]}  Nc6 {[%clk 0:03:00]} 4. Bg2 {[%clk 0:02:34]}  Nf6 {[%clk 0:03:00]} 5. Qe2 {[%clk 0:02:34]}  d5 {[%clk 0:03:00]} 6. exd5 {[%clk 0:02:35]}  Nxd5 {[%clk 0:03:01]} 7. O-O {[%clk 0:02:35]}  Be7 {[%clk 0:03:01]} 8. Rd1 {[%clk 0:02:36]}  Qb6 {[%clk 0:03:01]} 9. d3 {[%clk 0:02:22]}  O-O {[%clk 0:03:00]} 10. Nbd2 {[%clk 0:02:19]}  Rd8 {[%clk 0:02:56]} 11. Nc4 {[%clk 0:02:17]}  Qc7 {[%clk 0:02:56]} 12. Bd2 {[%clk 0:02:11]}  Bf6 {[%clk 0:02:50]} 13. c3 {[%clk 0:02:10]}  b6 {[%clk 0:02:49]} 14. Ne3 {[%clk 0:02:05]}  Bb7 {[%clk 0:02:40]} 15. Ng4 {[%clk 0:01:55]}  Be7 {[%clk 0:02:40]} 16. c4 {[%clk 0:01:43]}  Nf6 {[%clk 0:02:40]} 17. Bf4 {[%clk 0:01:32]}  Qc8 {[%clk 0:02:34]} 18. Nge5 {[%clk 0:01:21]}  h6 {[%clk 0:02:07]} 19. Re1 {[%clk 0:01:10]}  Bd6 {[%clk 0:01:53]} 20. Bh3 {[%clk 0:01:00]}  Nxe5 {[%clk 0:01:44]} 21. Nxe5 {[%clk 0:00:58]}  Bxe5 {[%clk 0:01:43]} 22. Bxe5 {[%clk 0:00:46]}  Qc6 {[%clk 0:01:42]} 23. f3 {[%clk 0:00:30]}  Qxf3 {[%clk 0:01:31]} 24. Qxf3 {[%clk 0:00:26]}  Bxf3 {[%clk 0:01:32]} 25. Re3 {[%clk 0:00:27]}  Ng4 {[%clk 0:01:16]} 26. Bxg4 {[%clk 0:00:23]}  Bxg4 {[%clk 0:01:17]} 27. Bc3 {[%clk 0:00:20]}  Bf5 {[%clk 0:01:16]} 28. Rd1 {[%clk 0:00:20]}  Rd7 {[%clk 0:01:16]} 29. Rd2 {[%clk 0:00:07]}  Rad8 {[%clk 0:01:16]} 30. b3 {[%clk 0:00:06]}  Bxd3 {[%clk 0:01:09]} 31. Kf2 {[%clk 0:00:05]}  Bf5 {[%clk 0:01:06]} 32. Ree2 {[%clk 0:00:05]}  Rd3 {[%clk 0:01:00]} 33. Rxd3 {[%clk 0:00:03]}  Rxd3 {[%clk 0:01:01]} 34. Bb2 {[%clk 0:00:02]}  f6 {[%clk 0:00:59]} 35. Bc1 {[%clk 0:00:01]}  e5 {[%clk 0:00:59]} 36. Rd2 {[%clk 0:00:02]}  Rxd2+ {[%clk 0:00:57]} 37. Bxd2 {[%clk 0:00:02]}  Bb1 {[%clk 0:00:55]} 38. a3 {[%clk 0:00:03]}  Ba2 {[%clk 0:00:55]} 39. b4 {[%clk 0:00:03]}  cxb4 {[%clk 0:00:55]} 40. axb4 {[%clk 0:00:03]}  Bxc4 {[%clk 0:00:56]} 41. Be3 {[%clk 0:00:03]}  a5 {[%clk 0:00:52]} 42. bxa5 {[%clk 0:00:03]}  bxa5 {[%clk 0:00:53]} 43. Bc5 {[%clk 0:00:04]}  a4 {[%clk 0:00:54]} 44. Ba3 {[%clk 0:00:05]}  Kf7 {[%clk 0:00:54]} 45. Ke3 {[%clk 0:00:05]}  g5 {[%clk 0:00:54]} 46. h4 {[%clk 0:00:05]}  gxh4 {[%clk 0:00:54]} 47. gxh4 {[%clk 0:00:06]}  h5 {[%clk 0:00:54]} 48. Bb2 {[%clk 0:00:05]}  Ke6 {[%clk 0:00:55]} 49. Kf3 {[%clk 0:00:06]}  f5 {[%clk 0:00:56]} 50. Ke3 {[%clk 0:00:06]}  Bd5 {[%clk 0:00:56]} 51. Kd3 {[%clk 0:00:07]}  f4 {[%clk 0:00:57]} 52. Ke2 {[%clk 0:00:07]}  Kf5 {[%clk 0:00:58]} 53. Kf2 {[%clk 0:00:07]}  e4 {[%clk 0:00:58]} 54. Ke2 {[%clk 0:00:07]}  Bc4+ {[%clk 0:00:59]} 55. Kf2 {[%clk 0:00:08]}  e3+ {[%clk 0:00:56]} 56. Ke1 {[%clk 0:00:08]}  Bd5 {[%clk 0:00:57]} 57. Ba3 {[%clk 0:00:08]}  Ke4 {[%clk 0:00:58]} 58. Be7 {[%clk 0:00:08]}  f3 {[%clk 0:00:59]} 59. Kf1 {[%clk 0:00:09]}  Bc4+ {[%clk 0:01:00]} 60. Kg1 {[%clk 0:00:10]}  f2+ {[%clk 0:01:01]} 61. Kh2 {[%clk 0:00:09]}  f1=Q {[%clk 0:01:02]} 0-1


[Site "https://www.chess.com"]

[Event "Titled Tuesday Blitz November 01 Early 2022"]
[White "Warchol, Kamil"]
[Black "Sanchez, Robert"]
[WhiteFideId "21858241"]
[BlackFideId "2034360"]
[WhiteElo "2001"]
[BlackElo "2399"]
[Result "0-1"]
[Round "07"]
[TimeControl "180+1"]
[Date "2022.11.02"]
[WhiteClock "0:00:01"]
[BlackClock "0:00:21"]

1. e4 {[%clk 0:03:00]}  e6 {[%clk 0:03:00]} 2. d4 {[%clk 0:02:58]}  d5 {[%clk 0:03:00]} 3. Nc3 {[%clk 0:02:57]}  Nf6 {[%clk 0:03:00]} 4. Bg5 {[%clk 0:02:44]}  Be7 {[%clk 0:03:00]} 5. e5 {[%clk 0:02:40]}  Nfd7 {[%clk 0:03:00]} 6. h4 {[%clk 0:02:38]}  h6 {[%clk 0:03:00]} 7. Bxe7 {[%clk 0:02:00]}  Qxe7 {[%clk 0:03:01]} 8. Nf3 {[%clk 0:01:58]}  a6 {[%clk 0:02:54]} 9. Ne2 {[%clk 0:01:41]}  Qb4+ {[%clk 0:02:52]} 10. c3 {[%clk 0:01:39]}  Qxb2 {[%clk 0:02:51]} 11. Rh3 {[%clk 0:01:36]}  c5 {[%clk 0:02:45]} 12. Rg3 {[%clk 0:01:35]}  g6 {[%clk 0:02:44]} 13. Rc1 {[%clk 0:01:29]}  Nc6 {[%clk 0:02:40]} 14. Rc2 {[%clk 0:01:20]}  Qb6 {[%clk 0:02:37]} 15. Nf4 {[%clk 0:01:16]}  cxd4 {[%clk 0:02:34]} 16. cxd4 {[%clk 0:01:14]}  Qa5+ {[%clk 0:02:31]} 17. Rd2 {[%clk 0:01:10]}  Nb6 {[%clk 0:02:25]} 18. Qb1 {[%clk 0:00:42]}  Bd7 {[%clk 0:02:11]} 19. Bd3 {[%clk 0:00:30]}  O-O-O {[%clk 0:02:09]} 20. Kf1 {[%clk 0:00:26]}  g5 {[%clk 0:02:04]} 21. Nh5 {[%clk 0:00:15]}  Kb8 {[%clk 0:01:56]} 22. Rb2 {[%clk 0:00:13]}  Ka7 {[%clk 0:01:49]} 23. Nf6 {[%clk 0:00:13]}  Bc8 {[%clk 0:01:46]} 24. Kg1 {[%clk 0:00:11]}  Nc4 {[%clk 0:01:37]} 25. Rb3 {[%clk 0:00:09]}  gxh4 {[%clk 0:01:35]} 26. Rg7 {[%clk 0:00:08]}  Rhf8 {[%clk 0:01:28]} 27. Nh7 {[%clk 0:00:07]}  h3 {[%clk 0:00:43]} 28. Nxf8 {[%clk 0:00:06]}  Rxf8 {[%clk 0:00:44]} 29. g3 {[%clk 0:00:04]}  h5 {[%clk 0:00:41]} 30. Kh2 {[%clk 0:00:03]}  Nd2 {[%clk 0:00:38]} 31. Nxd2 {[%clk 0:00:02]}  Qxd2 {[%clk 0:00:39]} 32. Qb2 {[%clk 0:00:02]}  Qxb2 {[%clk 0:00:33]} 33. Rxb2 {[%clk 0:00:03]}  Nxd4 {[%clk 0:00:34]} 34. Kxh3 {[%clk 0:00:03]}  Nf3 {[%clk 0:00:30]} 35. Be2 {[%clk 0:00:03]}  Nxe5 {[%clk 0:00:30]} 36. Bxh5 {[%clk 0:00:03]}  Nc4 {[%clk 0:00:29]} 37. Rc2 {[%clk 0:00:02]}  e5+ {[%clk 0:00:29]} 38. Kg2 {[%clk 0:00:02]}  f5 {[%clk 0:00:25]} 39. Be2 {[%clk 0:00:02]}  Be6 {[%clk 0:00:20]} 40. Bxc4 {[%clk 0:00:01]}  dxc4 {[%clk 0:00:21]} 0-1


[Site "https://www.chess.com"]

[Event "Titled Tuesday Blitz November 01 Early 2022"]
[White "Wieczorek, Oskar"]
[Black "Kamsky, Gata"]
[WhiteFideId "1133950"]
[BlackFideId "2000024"]
[WhiteElo "2404"]
[BlackElo "2666"]
[Result "0-1"]
[Round "07"]
[TimeControl "180+1"]
[Date "2022.11.01"]
[WhiteClock "0:00:06"]
[BlackClock "0:00:14"]

1. e4 {[%clk 0:03:00]}  e5 {[%clk 0:02:58]} 2. Nf3 {[%clk 0:02:58]}  Nc6 {[%clk 0:02:56]} 3. Nc3 {[%clk 0:02:59]}  Nf6 {[%clk 0:02:54]} 4. h3 {[%clk 0:02:58]}  Bb4 {[%clk 0:02:35]} 5. Nd5 {[%clk 0:02:57]}  Bc5 {[%clk 0:02:33]} 6. c3 {[%clk 0:02:56]}  Nxe4 {[%clk 0:02:12]} 7. d4 {[%clk 0:02:56]}  exd4 {[%clk 0:02:09]} 8. Bd3 {[%clk 0:02:54]}  Nf6 {[%clk 0:01:35]} 9. Nxf6+ {[%clk 0:02:53]}  Qxf6 {[%clk 0:01:29]} 10. O-O {[%clk 0:02:54]}  O-O {[%clk 0:01:23]} 11. Ng5 {[%clk 0:02:53]}  g6 {[%clk 0:00:35]} 12. Ne4 {[%clk 0:02:52]}  Qe5 {[%clk 0:00:31]} 13. Bh6 {[%clk 0:02:15]}  Be7 {[%clk 0:00:28]} 14. Re1 {[%clk 0:02:09]}  d5 {[%clk 0:00:27]} 15. Ng5 {[%clk 0:01:49]}  Qf6 {[%clk 0:00:26]} 16. cxd4 {[%clk 0:00:21]}  Rd8 {[%clk 0:00:25]} 17. Re3 {[%clk 0:00:15]}  Bf8 {[%clk 0:00:21]} 18. Rf3 {[%clk 0:00:15]}  Bf5 {[%clk 0:00:20]} 19. Bxf5 {[%clk 0:00:14]}  Bxh6 {[%clk 0:00:18]} 20. Be6 {[%clk 0:00:05]}  Qxg5 {[%clk 0:00:18]} 21. Rxf7 {[%clk 0:00:06]}  Kh8 {[%clk 0:00:18]} 22. Rxc7 {[%clk 0:00:07]}  Bg7 {[%clk 0:00:16]} 23. Rxb7 {[%clk 0:00:06]}  Qf6 {[%clk 0:00:14]} 24. Bg4 {[%clk 0:00:06]}  Nxd4 {[%clk 0:00:14]} 0-1


[Site "https://www.chess.com"]

[Event "Titled Tuesday Blitz November 01 Early 2022"]
[White "Yeletsky, Ivan"]
[Black "Garayev, Kanan"]
[WhiteFideId "24180327"]
[BlackFideId "13406671"]
[WhiteElo "2391"]
[BlackElo "2244"]
[Result "1-0"]
[Round "07"]
[TimeControl "180+1"]
[Date "2022.11.02"]
[WhiteClock "0:00:20"]
[BlackClock "0:00:09"]

1. Nf3 {[%clk 0:03:00]}  Nf6 {[%clk 0:02:59]} 2. g3 {[%clk 0:03:01]}  g6 {[%clk 0:02:59]} 3. Bg2 {[%clk 0:03:01]}  Bg7 {[%clk 0:03:00]} 4. d3 {[%clk 0:03:01]}  O-O {[%clk 0:03:01]} 5. O-O {[%clk 0:03:01]}  d5 {[%clk 0:03:01]} 6. Bf4 {[%clk 0:03:00]}  c5 {[%clk 0:02:57]} 7. c4 {[%clk 0:03:00]}  Nc6 {[%clk 0:02:56]} 8. Ne5 {[%clk 0:03:00]}  Nxe5 {[%clk 0:02:43]} 9. Bxe5 {[%clk 0:03:00]}  Be6 {[%clk 0:02:43]} 10. Qb3 {[%clk 0:02:51]}  Qd7 {[%clk 0:02:33]} 11. Nc3 {[%clk 0:02:43]}  d4 {[%clk 0:02:28]} 12. Na4 {[%clk 0:02:33]}  b6 {[%clk 0:02:25]} 13. Bxa8 {[%clk 0:02:33]}  Rxa8 {[%clk 0:02:26]} 14. Qc2 {[%clk 0:02:31]}  Bh3 {[%clk 0:02:23]} 15. Rfe1 {[%clk 0:02:31]}  Qc6 {[%clk 0:02:22]} 16. f3 {[%clk 0:02:15]}  Bh6 {[%clk 0:01:53]} 17. e4 {[%clk 0:01:27]}  dxe3 {[%clk 0:01:49]} 18. Nc3 {[%clk 0:01:27]}  Nd7 {[%clk 0:01:37]} 19. Nd5 {[%clk 0:01:21]}  Kf8 {[%clk 0:01:24]} 20. Bf4 {[%clk 0:01:21]}  Bxf4 {[%clk 0:01:21]} 21. Nxf4 {[%clk 0:01:22]}  Bf5 {[%clk 0:01:17]} 22. Rxe3 {[%clk 0:01:21]}  Nf6 {[%clk 0:01:12]} 23. Rae1 {[%clk 0:01:20]}  Rd8 {[%clk 0:00:57]} 24. Qc3 {[%clk 0:01:17]}  Rd4 {[%clk 0:00:47]} 25. Ne2 {[%clk 0:01:06]}  Qd6 {[%clk 0:00:38]} 26. Qd2 {[%clk 0:00:52]}  Rxc4 {[%clk 0:00:32]} 27. b3 {[%clk 0:00:48]}  Rb4 {[%clk 0:00:30]} 28. Nc3 {[%clk 0:00:33]}  e6 {[%clk 0:00:19]} 29. Qf2 {[%clk 0:00:29]}  h5 {[%clk 0:00:18]} 30. Ne4 {[%clk 0:00:28]}  Qd4 {[%clk 0:00:14]} 31. Ng5 {[%clk 0:00:23]}  Nd5 {[%clk 0:00:12]} 32. R3e2 {[%clk 0:00:21]}  Nc3 {[%clk 0:00:11]} 33. Rd2 {[%clk 0:00:19]}  Kg7 {[%clk 0:00:08]} 34. Ne4 {[%clk 0:00:18]}  Nd5 {[%clk 0:00:06]} 35. Nd6 {[%clk 0:00:19]}  Bh3 {[%clk 0:00:05]} 36. Re4 {[%clk 0:00:09]}  Qa1+ {[%clk 0:00:05]} 37. Qe1 {[%clk 0:00:10]}  Qxe1+ {[%clk 0:00:06]} 38. Rxe1 {[%clk 0:00:11]}  Rd4 {[%clk 0:00:05]} 39. Nb5 {[%clk 0:00:10]}  Rb4 {[%clk 0:00:06]} 40. Nd6 {[%clk 0:00:11]}  Ne7 {[%clk 0:00:06]} 41. Re4 {[%clk 0:00:10]}  Nd5 {[%clk 0:00:03]} 42. Kf2 {[%clk 0:00:09]}  Rd4 {[%clk 0:00:03]} 43. Rxd4 {[%clk 0:00:09]}  cxd4 {[%clk 0:00:04]} 44. Nc4 {[%clk 0:00:07]}  Bf5 {[%clk 0:00:03]} 45. a3 {[%clk 0:00:07]}  g5 {[%clk 0:00:04]} 46. b4 {[%clk 0:00:07]}  g4 {[%clk 0:00:04]} 47. Nd6 {[%clk 0:00:07]}  Kf6 {[%clk 0:00:04]} 48. f4 {[%clk 0:00:04]}  Bg6 {[%clk 0:00:04]} 49. Nc4 {[%clk 0:00:04]}  Nc3 {[%clk 0:00:04]} 50. Ne5 {[%clk 0:00:04]}  Bf5 {[%clk 0:00:04]} 51. Nc6 {[%clk 0:00:05]}  a6 {[%clk 0:00:05]} 52. Nxd4 {[%clk 0:00:05]}  Nb1 {[%clk 0:00:04]} 53. Rb2 {[%clk 0:00:03]}  Nxa3 {[%clk 0:00:03]} 54. Rb3 {[%clk 0:00:03]}  Nb5 {[%clk 0:00:02]} 55. Nxb5 {[%clk 0:00:04]}  axb5 {[%clk 0:00:03]} 56. Ke3 {[%clk 0:00:05]}  Ke7 {[%clk 0:00:01]} 57. Rc3 {[%clk 0:00:06]}  Kd6 {[%clk 0:00:01]} 58. Kd4 {[%clk 0:00:07]}  Bg6 {[%clk 0:00:02]} 59. Ra3 {[%clk 0:00:08]}  Bf5 {[%clk 0:00:02]} 60. Ra6 {[%clk 0:00:07]}  Kc7 {[%clk 0:00:03]} 61. Ra7+ {[%clk 0:00:08]}  Kd6 {[%clk 0:00:03]} 62. Rxf7 {[%clk 0:00:09]}  Kc6 {[%clk 0:00:03]} 63. Rf6 {[%clk 0:00:07]}  Kd6 {[%clk 0:00:03]} 64. Rh6 {[%clk 0:00:08]}  Ke7 {[%clk 0:00:04]} 65. Rxh5 {[%clk 0:00:09]}  Kf8 {[%clk 0:00:04]} 66. Rh8+ {[%clk 0:00:08]}  Kg7 {[%clk 0:00:04]} 67. Rb8 {[%clk 0:00:09]}  Kf6 {[%clk 0:00:05]} 68. Rxb6 {[%clk 0:00:10]}  Ke7 {[%clk 0:00:06]} 69. Ke5 {[%clk 0:00:10]}  Kd7 {[%clk 0:00:06]} 70. Rd6+ {[%clk 0:00:10]}  Ke7 {[%clk 0:00:06]} 71. d4 {[%clk 0:00:11]}  Bd3 {[%clk 0:00:06]} 72. Rxe6+ {[%clk 0:00:12]}  Kd7 {[%clk 0:00:06]} 73. d5 {[%clk 0:00:13]}  Bc4 {[%clk 0:00:06]} 74. Rd6+ {[%clk 0:00:13]}  Kc7 {[%clk 0:00:07]} 75. f5 {[%clk 0:00:14]}  Bd3 {[%clk 0:00:07]} 76. Rc6+ {[%clk 0:00:15]}  Kd7 {[%clk 0:00:06]} 77. Rc5 {[%clk 0:00:16]}  Bc4 {[%clk 0:00:07]} 78. d6 {[%clk 0:00:17]}  Kd8 {[%clk 0:00:06]} 79. Rc7 {[%clk 0:00:18]}  Ke8 {[%clk 0:00:06]} 80. f6 {[%clk 0:00:18]}  Kd8 {[%clk 0:00:07]} 81. f7 {[%clk 0:00:19]}  Bxf7 {[%clk 0:00:07]} 82. Rxf7 {[%clk 0:00:20]}  Ke8 {[%clk 0:00:08]} 83. Ke6 {[%clk 0:00:19]}  Kd8 {[%clk 0:00:09]} 84. Rf8# {[%clk 0:00:20]} 1-0


[Site "https://www.chess.com"]

[Event "Titled Tuesday Blitz November 01 Early 2022"]
[White "Zakhartsov, Vladimir"]
[Black "Darini, Pouria"]
[WhiteFideId "4145097"]
[BlackFideId "12502200"]
[WhiteElo "2492"]
[BlackElo "2483"]
[Result "1-0"]
[Round "07"]
[TimeControl "180+1"]
[Date "2022.11.01"]
[WhiteClock "0:00:49"]
[BlackClock "0:00:03"]

1. e4 {[%clk 0:02:58]}  e5 {[%clk 0:02:58]} 2. Nf3 {[%clk 0:02:55]}  Nc6 {[%clk 0:02:58]} 3. Nc3 {[%clk 0:02:55]}  Nf6 {[%clk 0:02:55]} 4. a3 {[%clk 0:02:55]}  Be7 {[%clk 0:02:41]} 5. d4 {[%clk 0:02:54]}  exd4 {[%clk 0:02:41]} 6. Nxd4 {[%clk 0:02:55]}  O-O {[%clk 0:02:39]} 7. Nxc6 {[%clk 0:02:54]}  bxc6 {[%clk 0:02:38]} 8. e5 {[%clk 0:02:54]}  Ne8 {[%clk 0:02:31]} 9. Bd3 {[%clk 0:02:52]}  d6 {[%clk 0:02:17]} 10. Bf4 {[%clk 0:02:46]}  Rb8 {[%clk 0:01:58]} 11. Qh5 {[%clk 0:02:39]}  g6 {[%clk 0:01:57]} 12. Qe2 {[%clk 0:02:37]}  Ng7 {[%clk 0:01:39]} 13. O-O-O {[%clk 0:02:36]}  dxe5 {[%clk 0:00:49]} 14. Bxe5 {[%clk 0:02:25]}  Bd6 {[%clk 0:00:38]} 15. f4 {[%clk 0:02:06]}  Qe7 {[%clk 0:00:23]} 16. Rhe1 {[%clk 0:01:54]}  Re8 {[%clk 0:00:22]} 17. Bxd6 {[%clk 0:01:50]}  Qxd6 {[%clk 0:00:22]} 18. Qf2 {[%clk 0:01:45]}  Bg4 {[%clk 0:00:20]} 19. Rxe8+ {[%clk 0:01:30]}  Rxe8 {[%clk 0:00:21]} 20. Rf1 {[%clk 0:01:31]}  Bf5 {[%clk 0:00:08]} 21. Bxf5 {[%clk 0:01:23]}  Nxf5 {[%clk 0:00:09]} 22. g3 {[%clk 0:01:24]}  c5 {[%clk 0:00:08]} 23. Rd1 {[%clk 0:01:19]}  Qc6 {[%clk 0:00:08]} 24. Kb1 {[%clk 0:01:02]}  Ne3 {[%clk 0:00:06]} 25. Re1 {[%clk 0:01:00]}  Ng4 {[%clk 0:00:02]} 26. Rxe8+ {[%clk 0:00:58]}  Qxe8 {[%clk 0:00:03]} 27. Qxc5 {[%clk 0:00:58]}  Nxh2 {[%clk 0:00:04]} 28. Qxa7 {[%clk 0:00:53]}  Qe1+ {[%clk 0:00:04]} 29. Ka2 {[%clk 0:00:54]}  Qxg3 {[%clk 0:00:02]} 30. Qb8+ {[%clk 0:00:54]}  Kg7 {[%clk 0:00:03]} 31. Qxc7 {[%clk 0:00:55]}  h5 {[%clk 0:00:03]} 32. a4 {[%clk 0:00:55]}  Qg2 {[%clk 0:00:03]} 33. a5 {[%clk 0:00:53]}  h4 {[%clk 0:00:04]} 34. Qe5+ {[%clk 0:00:51]}  Kg8 {[%clk 0:00:03]} 35. a6 {[%clk 0:00:48]}  Ng4 {[%clk 0:00:04]} 36. Qb8+ {[%clk 0:00:48]}  Kg7 {[%clk 0:00:03]} 37. a7 {[%clk 0:00:49]}  h3 {[%clk 0:00:03]} 38. a8=Q {[%clk 0:00:49]} 1-0


[Site "https://www.chess.com"]